Cogmind - Beta 13 @@@ ROGUE MODE // 2024.04.02 @ 13:31:36 Player: sauce Result: Destroyed by G-47 Trooper with Particle Gun Performance ------------- Evolutions (1) 500 Regions Visited (2) 400 Robots Destroyed (20) 100 Value Destroyed (356) 356 Prototype IDs (0) 0 Alien Tech Used (0) 0 Bonus (0) 0 TOTAL SCORE: 1356 Bonus ------- None Cogmind --------- Core Integrity 0/400 Matter 192/300 Energy 100/100 System Corruption 0% Temperature Cool (9) Movement Core (350) Ox6 Location -9/Materials Parts ------- > --- POWER (1) -------- (None) > --- PROPULSION (2) --- (None) > --- UTILITY (3) ------ Large Storage Unit > --- WEAPON (3) ------- (None) > --- INVENTORY (15) --- Light Treads Large Matter Pod (0) Weapon Shielding Peak State ------------ > --- POWER ------------ Ion Engine > --- PROPULSION ------- Light Treads Light Treads > --- UTILITY ---------- Large Storage Unit Terrain Scanner Targeting Computer > --- WEAPON ----------- Assault Rifle Assault Rifle Light Assault Rifle > --- INVENTORY -------- Light Treads Large Matter Pod Weapon Shielding Light Assault Rifle [Rating: 9] Favorites ----------- Power Ion Engine Engine Ion Engine Propulsion Light Treads Treads Light Treads Leg Aluminum Leg Utility Large Storage Unit Device Terrain Scanner Storage Large Storage Unit Processor Targeting Computer Weapon Assault Rifle Energy Gun EM Pulse Gun Ballistic Gun Assault Rifle Build | -11 -10 -9 ------- Run | Yrd Mat Mat Slots Evolved 2 | . . 2 Power . | . . . Propulsion . | . . . Utility 1 | . . 1 Weapon 1 | . . 1 Parts Attached 26 | 6 16 4 Power 4 | 2 2 . Engine 4 | 2 2 . Core . | . . . Reactor . | . . . Propulsion 7 | 2 5 . Treads 5 | . 5 . Leg 2 | 2 . . Wheel . | . . . Hover . | . . . Flight . | . . . Utility 5 | . 4 1 Device 3 | . 3 . Storage 1 | . 1 . Processor 1 | . . 1 Hackware . | . . . Protection . | . . . Artifact . | . . . Weapon 10 | 2 5 3 Energy Gun 1 | . 1 . Energy Cannon . | . . . Ballistic Gun 9 | 2 4 3 Ballistic Cannon . | . . . Launcher . | . . . Special Weapon . | . . . Impact Weapon . | . . . Slashing Weapon . | . . . Piercing Weapon . | . . . Special Melee Weapon . | . . . Unidentified Prototypes . | . . . Parts Lost 11 | . 1 10 Power 1 | . . 1 Propulsion 2 | . . 2 Utility 3 | . 1 2 Weapon 5 | . . 5 Highest Loss Streak 10 | . 1 10 To Critical Strikes 1 | . . 1 Average Slot Usage (%) 91 | . 92 88 Engine 12 | . 13 8 Treads 24 | . 26 18 Device 12 | . 13 9 Storage 9 | . 9 11 Processor 2 | . . 11 Energy Gun 2 | . 3 . Ballistic Gun 24 | . 23 28 Naked Turns . | . . . Heaviest Build 31 | 8 30 31 Greatest Support 40 | 20 40 40 Greatest Overweight (x) 6 | . 6 6 Average Overweight (x) . | . . . Largest Inventory Capacity 15 | 5 15 15 Average Capacity 11 | 5 11 15 Most Carried 6 | 5 6 5 Average Carried 4 | 2 4 3 Final Capacity 15 | 5 15 15 Final Carried 6 | 4 6 3 Class Distribution -------------------- 84% | Mutant 15% | Gunner Dominant Class ---------------- Mutant | -10/Materials Gunner | -9/Materials Resources | -11 -10 -9 ----------- Run | Yrd Mat Mat Matter Collected 538 | 275 169 94 Remotely . | . . . Salvage Created 452 | 38 299 115 Parts 40 | 3 25 12 Haulers Intercepted . | . . . Recyclers Shooed . | . . . Parts Field Recycled . | . . . Retrieved Matter . | . . . Parts Self-Destructed . | . . . Prevented . | . . . Kills | -11 -10 -9 ------- Run | Yrd Mat Mat Combat Hostiles Destroyed 18 | 1 10 7 Guns 18 | 1 10 7 Classes Destroyed 3 | 1 2 . Watcher 2 | . 2 . Swarmer 12 | . 6 6 Grunt 6 | 1 4 1 Best Kill Streak 5 | 1 5 4 Combat Bots Only 5 | 1 5 4 Max Kills in Single Turn 1 | 1 1 1 Gunslinging . | . . . Exploded . | . . . Melee . | . . . Uniques/NPCs Destroyed . | . . . Combat | -11 -10 -9 -------- Run | Yrd Mat Mat Hostile Shots Fired 223 | 10 74 139 Missed 53 | 2 20 31 Damage Taken 1494 | 89 467 938 Core 477 | 20 54 403 Absorbed by Shields . | . . . Core Remaining (%) 81 | 92 70 . Volleys Fired 60 | 7 33 20 Largest 3 | 2 2 3 Hottest 60 | 40 60 60 Shots Fired 122 | 14 59 49 Gun 122 | 14 59 49 Cannon . | . . . Launcher . | . . . Special . | . . . Kinetic 107 | 14 44 49 Thermal . | . . . Explosive . | . . . Electromagnetic 15 | . 15 . Robot Hit Streak 6 | 5 6 4 Robot Miss Streak 5 | 2 3 5 Penetration Max . | . . . Secondary Targets 8 | . 4 4 Max Gunslinging Chain 1 | . 1 1 Shots Hit Robots 70 | 9 37 24 Core Hits 30 | 2 16 12 Critical Kills . | . . . Critical Parts Destroyed . | . . . Critical Strikes . | . . . Melee Attacks . | . . . Impact . | . . . Slashing . | . . . Piercing . | . . . Sneak Attacks . | . . . Combat Hostiles . | . . . Follow-up Attacks . | . . . Damage Inflicted 835 | 104 463 268 Guns 835 | 104 463 268 Cannons . | . . . Explosions . | . . . Melee . | . . . Ramming . | . . . Kinetic 702 | 104 330 268 Thermal . | . . . Explosive . | . . . Electromagnetic 133 | . 133 . Impact . | . . . Slashing . | . . . Piercing . | . . . Highest Corruption . | . . . Average Corruption . | . . . Corruption Purged . | . . . Corruption Blocked . | . . . Overload Shots . | . . . Overflow Damage . | . . . Projectiles . | . . . Explosions . | . . . Melee . | . . . Knockbacks . | . . . Impact . | . . . Kinetic . | . . . Secondary . | . . . Self-Inflicted Damage . | . . . Shots . | . . . Rammed . | . . . Targets Rammed . | . . . Kicked . | . . . Crushed . | . . . Highest Temperature 24 | 12 24 4 Average Temperature 10 | 6 12 3 Received Heat Transfer 270 | 48 138 84 Siege Activations . | . . . Robots Corrupted . | . . . Combat Hostiles . | . . . Parts Fried 1 | . 1 . Impact Corruptions . | . . . Robots Melted . | . . . Combat Hostiles . | . . . Parts Melted . | . . . Heat Transferred . | . . . Parts Sabotaged . | . . . Parts Stolen . | . . . Parts Stripped . | . . . Power Chain Reactions . | . . . Alert | -11 -10 -9 ------- Run | Yrd Mat Mat Peak Influence 218 | 20 187 218 Initial 78 | . 13 78 Average 97 | 2 101 136 Maximum Alert Level 1 | . . 1 Low Security (%) 98 | 100 100 93 Level 1 1 | . . 6 Level 2 . | . . . Level 3 . | . . . Level 4 . | . . . Level 5 . | . . . High Security . | . . . Max Security . | . . . Squads Dispatched 2 | . 2 . Investigation . | . . . Extermination . | . . . Reinforcement 2 | . 2 . Assault . | . . . Garrison . | . . . Intercept . | . . . Searches Triggered . | . . . Construction Impeded . | . . . Haulers Reinforced . | . . . Active Scanning Responses . | . . . Cargo Convoy Interrupts . | . . . Stealth | -11 -10 -9 --------- Run | Yrd Mat Mat Distress Signals 4 | . 2 2 Communications Jammed . | . . . Distress Signals . | . . . Times Spotted 34 | 1 14 19 Peak Tracking Total 10 | 1 3 10 Tactical Retreats 1 | . 1 . Traps | -11 -10 -9 ------- Run | Yrd Mat Mat Traps Triggered 4 | . 4 . Indirectly . | . . . Trap Hack Attempts . | . . . Triggered . | . . . Disarmed . | . . . Reprogrammed . | . . . Reused . | . . . Traps Extracted . | . . . Installed . | . . . Triggered . | . . . Machines | -11 -10 -9 ---------- Run | Yrd Mat Mat Machines Disabled . | . . . Max in Single Turn . | . . . Machines Repaired . | . . . Machines Dismantled . | . . . Machines Sabotaged . | . . . Overloaded Fab Kills . | . . . Hacking | -11 -10 -9 --------- Run | Yrd Mat Mat Machines Accessed 1 | . 1 . Terminals 1 | . 1 . Fabricators . | . . . Repair Stations . | . . . Recycling Units . | . . . Scanalyzers . | . . . Garrison Access . | . . . Total Hacks 3 | . 3 . Successful 2 | . 2 . Failed 1 | . 1 . Catastrophic . | . . . Database Lockouts . | . . . Manual . | . . . Terminals 3 | . 3 . Fabricators . | . . . Repair Stations . | . . . Recycling Units . | . . . Scanalyzers . | . . . Garrison Access . | . . . Terminal Hacks 2 | . 2 . Record 2 | . 2 . Fabricator Hacks . | . . . Repair Station Hacks . | . . . Recycling Unit Hacks . | . . . Scanalyzer . | . . . Garrison Access Hacks . | . . . Unauthorized Hacks . | . . . Terminals . | . . . Fabricators . | . . . Repair Stations . | . . . Recycling Units . | . . . Scanalyzers . | . . . Garrison Access . | . . . Data Cores Recovered . | . . . Used . | . . . Hacking Detections 1 | . 1 . Full Trace Events 1 | . 1 . Feedback Events . | . . . Feedback Blocked . | . . . Robot Schematics Acquired . | . . . Robots Built . | . . . Authchips . | . . . Time . | . . . Total Robot Build Rating . | . . . Part Schematics Acquired . | . . . Parts Built . | . . . Authchips . | . . . Time . | . . . Total Part Build Rating . | . . . Parts Repaired . | . . . Time . | . . . Parts Recycled . | . . . Recycled Matter . | . . . Retrieved Matter . | . . . Retrieved Components . | . . . Parts Scanalyzed . | . . . Part Schematics Acquired . | . . . Parts Damaged . | . . . Bothacking | -11 -10 -9 ------------ Run | Yrd Mat Mat Used RIF Installer . | . . . Robots Hacked . | . . . Non-combat . | . . . Combat . | . . . Robot Hacks Applied . | . . . Relay Couplers Released . | . . . Fabnet Peak Effective % . | . . . Robots Rewired . | . . . Allies Hacked . | . . . Hacks Repelled . | . . . Allies | -11 -10 -9 -------- Run | Yrd Mat Mat Total Allies . | . . . Largest Group . | . . . Highest-Rated Group . | . . . Highest-Rated Ally . | . . . Total Orders . | . . . Ally Attacks . | . . . Total Damage . | . . . Kills . | . . . Allies Corrupted . | . . . Allies Melted . | . . . Intel | -11 -10 -9 ------- Run | Yrd Mat Mat Robot Analysis Total . | . . . Derelict Logs Recovered . | . . . Drone Launches . | . . . Drone Recoveries . | . . . Exploration | -11 -10 -9 ------------- Run | Yrd Mat Mat Turns Passed 1046 | 114 716 216 Spaces Moved 513 | 77 356 80 Core 21 | 19 1 1 Treads 426 | . 347 79 Legs 66 | 58 8 . Wheels . | . . . Hover . | . . . Flight . | . . . Fastest Speed 50 | 50 120 160 Average Speed 152 | 102 160 164 Slowest Speed 350 | 120 350 350 Overloaded Moves . | . . . Propulsion Burnouts . | . . . Robots Hopped . | . . . Cave-ins Triggered . | . . . Exploration Rate (%) 24 | 7 55 12 Regions Visited 2 Branch Regions . Pre-discovered Areas . | . . . Known Exits Taken . | . . . Unknown Exits Taken 2 | 1 1 . Scrap Searched . | . . . Spaces Dug . | . . . Terrain Destroyed . | . . . Melee . | . . . Projectile . | . . . AOE . | . . . Terrain Rammed . | . . . Walls Destroyed . | . . . Machines Disabled . | . . . Actions | -11 -10 -9 --------- Run | Yrd Mat Mat Total 678 | 100 449 129 Wait 42 | . 18 24 Move 511 | 76 355 80 Hop . | . . . Pick Up 28 | 10 17 1 Fast Attach 2 | . 2 . Attach 24 | 6 14 4 Detach 2 | . 2 . Swap . | . . . Drop 9 | 1 8 . Fire 60 | 7 33 20 Melee . | . . . Ram . | . . . Kick . | . . . Crush . | . . . Escape Stasis . | . . . Rewire . | . . . Trap . | . . . Miscellaneous . | . . . Route ------- -11/Scrapyard -10/Materials (discovered 2 exits: [*Mat] / [*Min]) -9/Materials History --------- Turn | Location | Event 2 | -11/Scrapyard | Met Revision 17 76 | -11/Scrapyard | Discovered new exit (range 8) 115 | -11/Scrapyard | Entered Materials 315 | -10/Materials | Build established: Mutant 437 | -10/Materials | Discovered new exit (range 7) 593 | -10/Materials | Discovered new exit (range 10) 831 | -10/Materials | Entered another Materials area 831 | -9/Materials | Evolved 2 slots: Utility x1, Weapon x1 1035 | -9/Materials | Core integrity fell below 50% 1043 | -9/Materials | Core integrity fell below 20% 1047 | -9/Materials | Destroyed by G-47 Trooper with Particle Gun Last Messages --------------- R-06 Scavenger collects Flight Unit. K-01 Serf cleans the Purification Channel. K-01 Serf cleans the Atomic Centrifuge. K-01 Serf cleans the Purification Channel. Lgt. Assault Rifle destroyed. K-01 Serf collects debris. R-06 Scavenger collects Flight Unit. K-01 Serf cleans the Atomic Centrifuge. K-01 Serf cleans the Purification Channel. K-01 Serf cleans the Atomic Centrifuge. K-01 Serf cleans the Purification Channel. K-01 Serf cleans the Atomic Centrifuge. R-06 Scavenger collects Flight Unit. K-01 Serf collects debris. Targeting Computer destroyed. K-01 Serf collects debris. K-01 Serf cleans the Atomic Centrifuge. K-01 Serf collects debris. K-01 Serf cleans the Atomic Centrifuge. [Achievement: First Step to Greatness] Map ----- +----------------------------------------------------+ | ?????????????????????????????????????????????????? | | ?????????????????????????????????????????????????? | | ?????????????????????????????????????????????????? | | ?????????????????????????????????????????????????? | | ?????????????????????????????????????????????????? | | ?????????????????????????????????????????????????? | | ?????????????????????????????????????????????????? | | ???"?????????????????????????????????????????????? | | ????????????????????????????????????????????????? | | ?????????#????? ??? ??????????????????????????? | | ??????????????? ??? ??????????????????????????? | | ?????????# ???" "?" "????#????????????????????? | | ?????????# ?""" """ ""?? #????????????????????? | | ?????????# ?? ? ??? #????????????????????? | | ########## ?? ? ?? #????????????????????? | | # ## """ """ """ #????????????????????? | | # ## """ """ """ #????????????????????? | | # ## """ """ """ #????????????????????? | | # """"" ## u k #???#?????#??????????? | | # """"" ## ##########???????????? | | # """"" ## """ """ """ ??????????? | | # ## """ """ """ ??????????? | | # """"" ## """ """ """ ?????????? | | # """"" ## g ? ???????? | | # """"" ## g ?????????? | | [# ## ##########@###########????????????? | | ###+###### #?##???# sk= #????????????? | | ! %% #?#?#??# s " """"" #????????????? | | #??????# sk""""""""" #????????????? | | [ #????#?# s r""" """ ??????????????? | | ################?#????# ???????????????? | | #??????#?????????????# ???????????????? | | #?#????????? ?????? ?############+??????????????? | | #?#????#?#?? ??????????? ???????????????????????? | | #???????????????????????????????????????????????? | | #???#?#???????????? ????????????????????????????? | | #?????????? ????? ? ????????????????????????????? | | ##????#?#????????????????????????????????????????? | | ???????????#?????????????????????????????????????? | | ??????? ??? ????????????"???????????????????????? | | ?????????????? ??????????????????????????????????? | | ?????????????????????????????????????????????????? | | ?????????????????????????????????????????????????? | | ?????????????????????????????????????????????????? | | ?????????????????????????????????????????????????? | | ?????????????????????????????????????????????????? | | ?????????????????????????????????????????????????? | | ?????????????????????????????????????????????????? | | ?????????????????????????????????????????????????? | | ?????????????????????????????????????????????????? | +----------------------------------------------------+ Best States ------------- Heat Dissipation 28 Energy Generation 10 Energy Capacity 250 Matter Stores 287 Matter Capacity 300 Sight Range 16 Robot Scan Range 14 Terrain Scan Range 14 Terrain Scan Density 10 Evasion (%) 55 Targeting Accuracy 5 Recoil Reduction 2 Item Schematics ----------------- None Robot Schematics ------------------ None Fabricated ------------ Nothing Alien Tech Used ----------------- None Achievements -------------- First Step to Greatness Storm Trooper Challenges ------------ None Game ------ Seed ArmorBottomlessSword Manual? 0 Play Time 00:15:02 Cumulative 0.7 hours Start 2024.04.02 @ 13:18:39 End 2024.04.02 @ 13:31:36 Sessions 1 Manual Loads 0 Difficulty Rogue Special Mode None Game No. 2 Rogue 2 Adventurer 0 Explorer 0 Win Type - Total 0 Types 0/0/0/0/0/0/0/0/0 Lore% 0 Gallery% 2 Achievement% 2 Wizard Run 0 Options --------- Layout 1 ASCII 0 Keyboard 0 Movement Mouse Keybinds 0 Fullscreen 1 Font 24/Smallcaps Map View 50x35 Zoom Use 0% Tactical HUD 0 Map Filters NONE Filters NONE Steam 1 RUN: 551986c3-11bf-477a-bd2d-afbfc0b2f5e1